[Event "Titled Tuesday Blitz April 4 Early 2023"]
[White "Pichot, Alan"]
[Black "Novikov, Evgenij"]
[WhiteFideId "110973"]
[BlackFideId "4125380"]
[WhiteElo "2573"]
[BlackElo "2242"]
[Result "1-0"]
[Round "05"]
[TimeControl "180+2"]
[Date "2023.04.04"]
[WhiteClock "0:00:05"]
[BlackClock "0:00:02"]

1. e4 {[%clk 0:02:56]}  c6 {[%clk 0:02:55]} 2. d4 {[%clk 0:02:55]}  g6 {[%clk 0:02:56]} 3. Nc3 {[%clk 0:02:56]}  Bg7 {[%clk 0:02:56]} 4. h3 {[%clk 0:02:56]}  Qc7 {[%clk 0:02:45]} 5. Nf3 {[%clk 0:02:56]}  d6 {[%clk 0:02:44]} 6. Bc4 {[%clk 0:02:56]}  e6 {[%clk 0:02:41]} 7. Bb3 {[%clk 0:02:55]}  h6 {[%clk 0:02:39]} 8. O-O {[%clk 0:02:55]}  Ne7 {[%clk 0:02:36]} 9. Re1 {[%clk 0:02:55]}  O-O {[%clk 0:02:35]} 10. Bf4 {[%clk 0:02:54]}  g5 {[%clk 0:02:28]} 11. Bg3 {[%clk 0:02:54]}  Ng6 {[%clk 0:02:28]} 12. e5 {[%clk 0:02:46]}  d5 {[%clk 0:02:22]} 13. Ne2 {[%clk 0:02:44]}  c5 {[%clk 0:02:08]} 14. c3 {[%clk 0:02:44]}  Nc6 {[%clk 0:02:08]} 15. Bc2 {[%clk 0:02:42]}  Nce7 {[%clk 0:02:08]} 16. Nc1 {[%clk 0:02:37]}  cxd4 {[%clk 0:01:58]} 17. cxd4 {[%clk 0:02:37]}  b6 {[%clk 0:01:55]} 18. Nh2 {[%clk 0:02:37]}  Ba6 {[%clk 0:01:52]} 19. Ne2 {[%clk 0:02:36]}  Rac8 {[%clk 0:01:51]} 20. Nc3 {[%clk 0:02:36]}  Rfd8 {[%clk 0:01:32]} 21. Qh5 {[%clk 0:02:25]}  Nf5 {[%clk 0:01:26]} 22. Rad1 {[%clk 0:02:26]}  b5 {[%clk 0:01:16]} 23. a3 {[%clk 0:02:23]}  b4 {[%clk 0:01:03]} 24. axb4 {[%clk 0:02:22]}  Rb8 {[%clk 0:01:03]} 25. Ng4 {[%clk 0:02:22]}  Kh7 {[%clk 0:00:48]} 26. b5 {[%clk 0:01:53]}  Bxb5 {[%clk 0:00:48]} 27. Ne3 {[%clk 0:01:52]}  Nxe3 {[%clk 0:00:42]} 28. fxe3 {[%clk 0:01:52]}  Be8 {[%clk 0:00:42]} 29. Rb1 {[%clk 0:01:48]}  Rb4 {[%clk 0:00:37]} 30. Rf1 {[%clk 0:01:48]}  Rdb8 {[%clk 0:00:36]} 31. Qe2 {[%clk 0:01:35]}  Kg8 {[%clk 0:00:34]} 32. Bd3 {[%clk 0:01:33]}  Qb6 {[%clk 0:00:30]} 33. Rf2 {[%clk 0:01:33]}  a5 {[%clk 0:00:27]} 34. h4 {[%clk 0:01:12]}  gxh4 {[%clk 0:00:26]} 35. Bf4 {[%clk 0:01:13]}  a4 {[%clk 0:00:22]} 36. Qg4 {[%clk 0:01:06]}  Rb3 {[%clk 0:00:20]} 37. Bc2 {[%clk 0:00:54]}  Rb4 {[%clk 0:00:18]} 38. Na2 {[%clk 0:00:39]}  Rc4 {[%clk 0:00:16]} 39. Bd3 {[%clk 0:00:38]}  Rc7 {[%clk 0:00:15]} 40. Nc3 {[%clk 0:00:37]}  Rbc8 {[%clk 0:00:12]} 41. Kh1 {[%clk 0:00:31]}  Ra7 {[%clk 0:00:11]} 42. Nxd5 {[%clk 0:00:30]}  exd5 {[%clk 0:00:08]} 43. Qxc8 {[%clk 0:00:30]}  Re7 {[%clk 0:00:06]} 44. Rc1 {[%clk 0:00:22]}  Kh7 {[%clk 0:00:05]} 45. Bh2 {[%clk 0:00:18]}  Qb3 {[%clk 0:00:05]} 46. Qc3 {[%clk 0:00:17]}  Qb6 {[%clk 0:00:05]} 47. Rcf1 {[%clk 0:00:17]}  Rc7 {[%clk 0:00:05]} 48. Qd2 {[%clk 0:00:15]}  Qb7 {[%clk 0:00:05]} 49. Rf5 {[%clk 0:00:13]}  Re7 {[%clk 0:00:05]} 50. Qf2 {[%clk 0:00:13]}  Qd7 {[%clk 0:00:04]} 51. Rh5 {[%clk 0:00:13]}  Qe6 {[%clk 0:00:04]} 52. Bf5 {[%clk 0:00:12]}  Qb6 {[%clk 0:00:04]} 53. Qxh4 {[%clk 0:00:13]}  Qc7 {[%clk 0:00:02]} 54. Bf4 {[%clk 0:00:13]}  Qa7 {[%clk 0:00:01]} 55. Bxh6 {[%clk 0:00:12]}  Kg8 {[%clk 0:00:01]} 56. Bxg7 {[%clk 0:00:09]}  Qa6 {[%clk 0:00:02]} 57. Rh8+ {[%clk 0:00:05]}  Kxg7 {[%clk 0:00:02]} 58. Qh6# {[%clk 0:00:05]} 1-0


[Site "https://www.chess.com"]

[Event "Titled Tuesday Blitz April 4 Early 2023"]
[White "Mouhamad, Joachim"]
[Black "Dehtiarov, Roman"]
[WhiteFideId "656410"]
[BlackFideId "14186640"]
[WhiteElo "2125"]
[BlackElo "2189"]
[Result "0-1"]
[Round "05"]
[TimeControl "180+2"]
[Date "2023.04.04"]
[WhiteClock "0:00:02"]
[BlackClock "0:01:54"]

1. e4 {[%clk 0:02:52]}  e5 {[%clk 0:02:52]} 2. Nf3 {[%clk 0:02:52]}  Nc6 {[%clk 0:02:53]} 3. Bb5 {[%clk 0:02:53]}  a6 {[%clk 0:02:53]} 4. Ba4 {[%clk 0:02:53]}  Nf6 {[%clk 0:02:54]} 5. O-O {[%clk 0:02:53]}  Be7 {[%clk 0:02:54]} 6. d3 {[%clk 0:02:53]}  b5 {[%clk 0:02:54]} 7. Bb3 {[%clk 0:02:53]}  d6 {[%clk 0:02:55]} 8. c3 {[%clk 0:02:53]}  Bg4 {[%clk 0:02:55]} 9. a4 {[%clk 0:02:50]}  O-O {[%clk 0:02:55]} 10. h3 {[%clk 0:02:49]}  Bh5 {[%clk 0:02:55]} 11. Re1 {[%clk 0:02:44]}  Na5 {[%clk 0:02:46]} 12. Bc2 {[%clk 0:02:45]}  c5 {[%clk 0:02:46]} 13. Nbd2 {[%clk 0:02:44]}  Nc6 {[%clk 0:02:46]} 14. Nf1 {[%clk 0:02:44]}  Re8 {[%clk 0:02:45]} 15. Ng3 {[%clk 0:02:42]}  Bg6 {[%clk 0:02:45]} 16. d4 {[%clk 0:02:37]}  cxd4 {[%clk 0:02:42]} 17. cxd4 {[%clk 0:02:37]}  Rc8 {[%clk 0:02:43]} 18. axb5 {[%clk 0:02:35]}  axb5 {[%clk 0:02:44]} 19. d5 {[%clk 0:02:22]}  Nb4 {[%clk 0:02:39]} 20. Bb1 {[%clk 0:02:19]}  Qc7 {[%clk 0:02:39]} 21. Bd2 {[%clk 0:02:14]}  Nc2 {[%clk 0:02:39]} 22. Bxc2 {[%clk 0:02:09]}  Qxc2 {[%clk 0:02:40]} 23. Qxc2 {[%clk 0:01:52]}  Rxc2 {[%clk 0:02:41]} 24. Bc3 {[%clk 0:01:51]}  Rb8 {[%clk 0:02:40]} 25. Nxe5 {[%clk 0:01:12]}  dxe5 {[%clk 0:02:38]} 26. Bxe5 {[%clk 0:01:13]}  Rd8 {[%clk 0:02:36]} 27. f3 {[%clk 0:01:13]}  Bc5+ {[%clk 0:02:33]} 28. Kh1 {[%clk 0:01:07]}  Nd7 {[%clk 0:02:33]} 29. Bf4 {[%clk 0:01:02]}  h5 {[%clk 0:02:32]} 30. Re2 {[%clk 0:00:38]}  Rxe2 {[%clk 0:02:29]} 31. Nxe2 {[%clk 0:00:39]}  f6 {[%clk 0:02:29]} 32. b4 {[%clk 0:00:35]}  Bf8 {[%clk 0:02:22]} 33. Nd4 {[%clk 0:00:34]}  Ne5 {[%clk 0:02:16]} 34. Ra7 {[%clk 0:00:20]}  Nd3 {[%clk 0:02:05]} 35. Bc7 {[%clk 0:00:18]}  Rd7 {[%clk 0:02:06]} 36. Nxb5 {[%clk 0:00:18]}  Nxb4 {[%clk 0:02:04]} 37. Ra8 {[%clk 0:00:19]}  Kf7 {[%clk 0:01:57]} 38. d6 {[%clk 0:00:07]}  Nd3 {[%clk 0:01:53]} 39. Kh2 {[%clk 0:00:02]}  h4 {[%clk 0:01:53]} 40. g3 {[%clk 0:00:03]}  hxg3+ {[%clk 0:01:53]} 41. Kxg3 {[%clk 0:00:03]}  f5 {[%clk 0:01:54]} 42. exf5 {[%clk 0:00:03]}  Bxf5 {[%clk 0:01:54]} 43. h4 {[%clk 0:00:03]}  g6 {[%clk 0:01:54]} 44. Nd4 {[%clk 0:00:04]}  Bh6 {[%clk 0:01:54]} 45. Nc6 {[%clk 0:00:04]}  Bf4+ {[%clk 0:01:53]} 46. Kg2 {[%clk 0:00:05]}  Bxd6 {[%clk 0:01:53]} 47. Bxd6 {[%clk 0:00:03]}  Rxd6 {[%clk 0:01:54]} 48. Ra7+ {[%clk 0:00:01]}  Kf6 {[%clk 0:01:54]} 49. Nb4 {[%clk 0:00:02]}  Nxb4 {[%clk 0:01:54]} 0-1


[Site "https://www.chess.com"]

[Event "Titled Tuesday Blitz April 4 Early 2023"]
[White "Reprintsev, Alexander"]
[Black "Rohith Krishna S"]
[WhiteFideId "14100541"]
[BlackFideId "46617051"]
[WhiteElo "2211"]
[BlackElo "2270"]
[Result "0-1"]
[Round "05"]
[TimeControl "180+2"]
[Date "2023.04.04"]
[WhiteClock "0:00:02"]
[BlackClock "0:00:15"]

1. e4 {[%clk 0:03:00]}  e5 {[%clk 0:02:55]} 2. Nf3 {[%clk 0:03:00]}  Nc6 {[%clk 0:02:55]} 3. Bc4 {[%clk 0:02:59]}  Nf6 {[%clk 0:02:54]} 4. Ng5 {[%clk 0:02:59]}  d5 {[%clk 0:02:52]} 5. exd5 {[%clk 0:02:59]}  Na5 {[%clk 0:02:52]} 6. Bb5+ {[%clk 0:02:59]}  c6 {[%clk 0:02:53]} 7. dxc6 {[%clk 0:02:59]}  bxc6 {[%clk 0:02:54]} 8. Bd3 {[%clk 0:02:59]}  Nd5 {[%clk 0:02:44]} 9. h4 {[%clk 0:02:59]}  Nf4 {[%clk 0:02:36]} 10. Bf1 {[%clk 0:02:58]}  h6 {[%clk 0:02:34]} 11. Ne4 {[%clk 0:02:48]}  f5 {[%clk 0:02:08]} 12. g3 {[%clk 0:02:20]}  fxe4 {[%clk 0:01:49]} 13. gxf4 {[%clk 0:02:20]}  Bf5 {[%clk 0:01:46]} 14. fxe5 {[%clk 0:02:04]}  Bc5 {[%clk 0:01:45]} 15. Qh5+ {[%clk 0:01:57]}  g6 {[%clk 0:01:44]} 16. Qe2 {[%clk 0:01:57]}  O-O {[%clk 0:01:39]} 17. Nc3 {[%clk 0:01:52]}  Kh7 {[%clk 0:01:33]} 18. b4 {[%clk 0:01:44]}  Bxb4 {[%clk 0:01:29]} 19. Nxe4 {[%clk 0:01:44]}  Qd4 {[%clk 0:01:29]} 20. Ng5+ {[%clk 0:00:49]}  hxg5 {[%clk 0:01:26]} 21. hxg5+ {[%clk 0:00:49]}  Kg7 {[%clk 0:01:26]} 22. Rb1 {[%clk 0:00:41]}  Bxc2 {[%clk 0:01:12]} 23. Rb2 {[%clk 0:00:19]}  Bf5 {[%clk 0:00:38]} 24. e6 {[%clk 0:00:18]}  Rae8 {[%clk 0:00:36]} 25. Rxb4 {[%clk 0:00:18]}  Qa1 {[%clk 0:00:32]} 26. Kd1 {[%clk 0:00:12]}  Rxe6 {[%clk 0:00:28]} 27. Qa6 {[%clk 0:00:11]}  Rfe8 {[%clk 0:00:25]} 28. Bg2 {[%clk 0:00:06]}  c5 {[%clk 0:00:16]} 29. Rbh4 {[%clk 0:00:02]}  Rxa6 {[%clk 0:00:14]} 30. Rh7+ {[%clk 0:00:02]}  Kg8 {[%clk 0:00:15]} 0-1


[Site "https://www.chess.com"]

[Event "Titled Tuesday Blitz April 4 Early 2023"]
[White "Nguyen, Hong Anh"]
[Black "Krysa, Leandro"]
[WhiteFideId "12406732"]
[BlackFideId "116807"]
[WhiteElo "2054"]
[BlackElo "2489"]
[Result "0-1"]
[Round "05"]
[TimeControl "180+2"]
[Date "2023.04.04"]
[WhiteClock "0:00:40"]
[BlackClock "0:00:13"]

1. d4 {[%clk 0:02:54]}  Nf6 {[%clk 0:02:59]} 2. c4 {[%clk 0:02:53]}  g6 {[%clk 0:02:59]} 3. Nf3 {[%clk 0:02:54]}  Bg7 {[%clk 0:02:58]} 4. g3 {[%clk 0:02:55]}  d5 {[%clk 0:02:58]} 5. cxd5 {[%clk 0:02:54]}  Nxd5 {[%clk 0:02:58]} 6. Bg2 {[%clk 0:02:55]}  Nb6 {[%clk 0:02:58]} 7. O-O {[%clk 0:02:55]}  Nc6 {[%clk 0:02:57]} 8. e3 {[%clk 0:02:51]}  e5 {[%clk 0:02:53]} 9. Nc3 {[%clk 0:02:47]}  O-O {[%clk 0:02:49]} 10. d5 {[%clk 0:02:46]}  Na5 {[%clk 0:02:48]} 11. e4 {[%clk 0:02:47]}  c6 {[%clk 0:02:47]} 12. Qe1 {[%clk 0:02:44]}  cxd5 {[%clk 0:02:41]} 13. exd5 {[%clk 0:02:44]}  Nac4 {[%clk 0:02:31]} 14. b3 {[%clk 0:02:39]}  Nd6 {[%clk 0:02:26]} 15. Ba3 {[%clk 0:02:36]}  Re8 {[%clk 0:02:24]} 16. Rc1 {[%clk 0:02:32]}  e4 {[%clk 0:02:20]} 17. Nd2 {[%clk 0:02:27]}  Bxc3 {[%clk 0:02:07]} 18. Rxc3 {[%clk 0:02:26]}  Nb5 {[%clk 0:02:07]} 19. Nxe4 {[%clk 0:02:12]}  Nxa3 {[%clk 0:01:37]} 20. Nf6+ {[%clk 0:02:05]}  Qxf6 {[%clk 0:01:37]} 21. Qxe8+ {[%clk 0:02:05]}  Kg7 {[%clk 0:01:37]} 22. Rf3 {[%clk 0:02:05]}  Bf5 {[%clk 0:01:33]} 23. Qe3 {[%clk 0:01:55]}  Qd6 {[%clk 0:01:12]} 24. Qd4+ {[%clk 0:01:52]}  Kg8 {[%clk 0:01:05]} 25. Rf4 {[%clk 0:01:47]}  Re8 {[%clk 0:00:58]} 26. h4 {[%clk 0:01:37]}  h5 {[%clk 0:00:57]} 27. Bf3 {[%clk 0:01:30]}  Nb5 {[%clk 0:00:51]} 28. Qd2 {[%clk 0:01:27]}  Nd7 {[%clk 0:00:37]} 29. Be2 {[%clk 0:01:20]}  Nc7 {[%clk 0:00:30]} 30. Rd1 {[%clk 0:01:19]}  Nf6 {[%clk 0:00:29]} 31. Bf3 {[%clk 0:01:18]}  Bg4 {[%clk 0:00:25]} 32. Bxg4 {[%clk 0:01:15]}  Nxg4 {[%clk 0:00:26]} 33. Qd4 {[%clk 0:01:12]}  b6 {[%clk 0:00:22]} 34. a4 {[%clk 0:01:02]}  Ne5 {[%clk 0:00:21]} 35. Kg2 {[%clk 0:00:59]}  Nd7 {[%clk 0:00:21]} 36. Rd3 {[%clk 0:00:55]}  Re5 {[%clk 0:00:20]} 37. Rdf3 {[%clk 0:00:53]}  f5 {[%clk 0:00:19]} 38. Qc4 {[%clk 0:00:50]}  Rxd5 {[%clk 0:00:14]} 39. Rd4 {[%clk 0:00:50]}  Nf6 {[%clk 0:00:14]} 40. Re3 {[%clk 0:00:47]}  Kg7 {[%clk 0:00:12]} 41. Rxd5 {[%clk 0:00:44]}  Qxd5+ {[%clk 0:00:13]} 42. Qxd5 {[%clk 0:00:42]}  Nfxd5 {[%clk 0:00:14]} 43. Re6 {[%clk 0:00:40]}  Nxe6 {[%clk 0:00:13]} 0-1


[Site "https://www.chess.com"]

[Event "Titled Tuesday Blitz April 4 Early 2023"]
[White "Prohaszka, Peter"]
[Black "Deng, Henry"]
[WhiteFideId "726265"]
[BlackFideId "30965454"]
[WhiteElo "2626"]
[BlackElo "2466"]
[Result "0-1"]
[Round "05"]
[TimeControl "180+2"]
[Date "2023.04.04"]
[WhiteClock "0:00:02"]
[BlackClock "0:00:13"]

1. d4 {[%clk 0:02:53]}  d5 {[%clk 0:02:59]} 2. c3 {[%clk 0:02:53]}  Nf6 {[%clk 0:02:53]} 3. Bf4 {[%clk 0:02:52]}  Bf5 {[%clk 0:02:47]} 4. Qb3 {[%clk 0:02:50]}  Qc8 {[%clk 0:02:44]} 5. e3 {[%clk 0:02:47]}  e6 {[%clk 0:02:44]} 6. c4 {[%clk 0:02:41]}  c6 {[%clk 0:02:39]} 7. Nc3 {[%clk 0:02:41]}  Nbd7 {[%clk 0:02:35]} 8. Rc1 {[%clk 0:02:33]}  a6 {[%clk 0:02:01]} 9. h3 {[%clk 0:02:31]}  Be7 {[%clk 0:01:57]} 10. Nf3 {[%clk 0:02:31]}  O-O {[%clk 0:01:56]} 11. cxd5 {[%clk 0:02:25]}  exd5 {[%clk 0:01:53]} 12. Be2 {[%clk 0:02:24]}  b5 {[%clk 0:01:53]} 13. Qd1 {[%clk 0:02:15]}  Qb7 {[%clk 0:01:48]} 14. O-O {[%clk 0:02:14]}  Nb6 {[%clk 0:01:42]} 15. Ne5 {[%clk 0:02:13]}  Rac8 {[%clk 0:01:40]} 16. Nb1 {[%clk 0:02:02]}  Ne4 {[%clk 0:01:32]} 17. Nd3 {[%clk 0:01:58]}  Rfd8 {[%clk 0:01:22]} 18. b3 {[%clk 0:01:36]}  c5 {[%clk 0:01:18]} 19. f3 {[%clk 0:01:09]}  cxd4 {[%clk 0:00:50]} 20. fxe4 {[%clk 0:01:09]}  dxe4 {[%clk 0:00:50]} 21. Rxc8 {[%clk 0:01:06]}  Rxc8 {[%clk 0:00:50]} 22. Ne5 {[%clk 0:01:02]}  f6 {[%clk 0:00:38]} 23. Bh2 {[%clk 0:00:41]}  Be6 {[%clk 0:00:30]} 24. Bg4 {[%clk 0:00:26]}  Qd5 {[%clk 0:00:24]} 25. Bxe6+ {[%clk 0:00:21]}  Qxe6 {[%clk 0:00:24]} 26. Qg4 {[%clk 0:00:16]}  Qd5 {[%clk 0:00:19]} 27. Qh5 {[%clk 0:00:05]}  fxe5 {[%clk 0:00:18]} 28. exd4 {[%clk 0:00:04]}  Qxd4+ {[%clk 0:00:17]} 29. Kh1 {[%clk 0:00:04]}  Bf6 {[%clk 0:00:16]} 30. Rxf6 {[%clk 0:00:02]}  gxf6 {[%clk 0:00:16]} 31. Qg4+ {[%clk 0:00:02]}  Kf7 {[%clk 0:00:17]} 32. Bg1 {[%clk 0:00:02]}  Rc1 {[%clk 0:00:15]} 33. Qh5+ {[%clk 0:00:02]}  Ke6 {[%clk 0:00:13]} 34. Qg4+ {[%clk 0:00:02]}  Kd6 {[%clk 0:00:13]} 0-1


[Site "https://www.chess.com"]

[Event "Titled Tuesday Blitz April 4 Early 2023"]
[White "Kowalczyk, Pawel"]
[Black "Nguyen Hong Nhung"]
[WhiteFideId "1130641"]
[BlackFideId "12412201"]
[WhiteElo "2324"]
[BlackElo "1968"]
[Result "1-0"]
[Round "05"]
[TimeControl "180+2"]
[Date "2023.04.04"]
[WhiteClock "0:00:19"]
[BlackClock "0:00:12"]

1. e4 {[%clk 0:03:00]}  c5 {[%clk 0:02:59]} 2. Ne2 {[%clk 0:03:00]}  e6 {[%clk 0:03:00]} 3. g3 {[%clk 0:03:00]}  Nc6 {[%clk 0:03:00]} 4. Bg2 {[%clk 0:03:01]}  g6 {[%clk 0:03:00]} 5. d4 {[%clk 0:02:58]}  cxd4 {[%clk 0:02:59]} 6. Nxd4 {[%clk 0:02:59]}  Bg7 {[%clk 0:02:59]} 7. Nb5 {[%clk 0:02:58]}  Qa5+ {[%clk 0:02:27]} 8. N1c3 {[%clk 0:02:57]}  Be5 {[%clk 0:02:14]} 9. Nd6+ {[%clk 0:02:47]}  Bxd6 {[%clk 0:02:12]} 10. Qxd6 {[%clk 0:02:48]}  Qb4 {[%clk 0:02:04]} 11. Qd2 {[%clk 0:02:30]}  h5 {[%clk 0:01:47]} 12. O-O {[%clk 0:02:29]}  Nge7 {[%clk 0:01:45]} 13. a3 {[%clk 0:02:29]}  Qb6 {[%clk 0:01:43]} 14. b4 {[%clk 0:02:27]}  O-O {[%clk 0:01:41]} 15. Bb2 {[%clk 0:02:25]}  f6 {[%clk 0:01:28]} 16. Rad1 {[%clk 0:02:22]}  a5 {[%clk 0:01:25]} 17. b5 {[%clk 0:02:20]}  Ne5 {[%clk 0:01:23]} 18. Qd4 {[%clk 0:02:18]}  Qxd4 {[%clk 0:01:21]} 19. Rxd4 {[%clk 0:02:19]}  Rd8 {[%clk 0:01:06]} 20. f4 {[%clk 0:02:14]}  Nf7 {[%clk 0:01:04]} 21. a4 {[%clk 0:02:10]}  Ra7 {[%clk 0:00:58]} 22. Ba3 {[%clk 0:02:09]}  Kf8 {[%clk 0:00:54]} 23. Bh3 {[%clk 0:02:02]}  Ke8 {[%clk 0:00:52]} 24. Rfd1 {[%clk 0:02:00]}  b6 {[%clk 0:00:52]} 25. Nb1 {[%clk 0:01:53]}  Rc7 {[%clk 0:00:51]} 26. c4 {[%clk 0:01:44]}  d5 {[%clk 0:00:45]} 27. exd5 {[%clk 0:01:32]}  e5 {[%clk 0:00:27]} 28. Bxc8 {[%clk 0:01:33]}  exd4 {[%clk 0:00:27]} 29. Be6 {[%clk 0:01:24]}  Rxc4 {[%clk 0:00:26]} 30. Nd2 {[%clk 0:01:23]}  Rxa4 {[%clk 0:00:26]} 31. Bb2 {[%clk 0:01:23]}  Nxd5 {[%clk 0:00:24]} 32. Ne4 {[%clk 0:01:22]}  Ke7 {[%clk 0:00:23]} 33. Bh3 {[%clk 0:01:20]}  Ne3 {[%clk 0:00:23]} 34. Rd3 {[%clk 0:01:19]}  f5 {[%clk 0:00:22]} 35. Nd2 {[%clk 0:01:18]}  Rd5 {[%clk 0:00:16]} 36. Nb3 {[%clk 0:01:12]}  Rxb5 {[%clk 0:00:13]} 37. Bxd4 {[%clk 0:01:12]}  Nc2 {[%clk 0:00:11]} 38. Bg7 {[%clk 0:01:00]}  Ra3 {[%clk 0:00:10]} 39. Nc1 {[%clk 0:00:59]}  Rxd3 {[%clk 0:00:10]} 40. Nxd3 {[%clk 0:01:00]}  Rb1+ {[%clk 0:00:10]} 41. Kf2 {[%clk 0:00:58]}  b5 {[%clk 0:00:10]} 42. Bg2 {[%clk 0:00:58]}  Nd6 {[%clk 0:00:09]} 43. Bd5 {[%clk 0:00:54]}  Ne4+ {[%clk 0:00:08]} 44. Kg2 {[%clk 0:00:52]}  Nd6 {[%clk 0:00:06]} 45. Bg8 {[%clk 0:00:43]}  Rd1 {[%clk 0:00:06]} 46. Ne5 {[%clk 0:00:41]}  Rd2+ {[%clk 0:00:07]} 47. Kf3 {[%clk 0:00:40]}  Ne8 {[%clk 0:00:04]} 48. Nxg6+ {[%clk 0:00:39]}  Kd7 {[%clk 0:00:03]} 49. Bh8 {[%clk 0:00:38]}  b4 {[%clk 0:00:03]} 50. Ne5+ {[%clk 0:00:37]}  Kc7 {[%clk 0:00:03]} 51. Nc4 {[%clk 0:00:37]}  Rxh2 {[%clk 0:00:03]} 52. Nxa5 {[%clk 0:00:38]}  Nd4+ {[%clk 0:00:03]} 53. Bxd4 {[%clk 0:00:38]}  Nf6 {[%clk 0:00:02]} 54. Bxf6 {[%clk 0:00:37]}  Rd2 {[%clk 0:00:01]} 55. Be5+ {[%clk 0:00:36]}  Kc8 {[%clk 0:00:01]} 56. Be6+ {[%clk 0:00:36]}  Kd8 {[%clk 0:00:01]} 57. Nc6+ {[%clk 0:00:36]}  Ke8 {[%clk 0:00:02]} 58. Nxb4 {[%clk 0:00:36]}  Rb2 {[%clk 0:00:02]} 59. Bxb2 {[%clk 0:00:35]}  h4 {[%clk 0:00:03]} 60. gxh4 {[%clk 0:00:35]}  Ke7 {[%clk 0:00:04]} 61. Bxf5 {[%clk 0:00:35]}  Kd6 {[%clk 0:00:04]} 62. Bd4 {[%clk 0:00:25]}  Ke7 {[%clk 0:00:04]} 63. Be5 {[%clk 0:00:25]}  Kf7 {[%clk 0:00:04]} 64. Nd5 {[%clk 0:00:24]}  Kg8 {[%clk 0:00:05]} 65. Bg6 {[%clk 0:00:23]}  Kf8 {[%clk 0:00:05]} 66. Bf6 {[%clk 0:00:23]}  Kg8 {[%clk 0:00:06]} 67. h5 {[%clk 0:00:24]}  Kf8 {[%clk 0:00:07]} 68. h6 {[%clk 0:00:25]}  Kg8 {[%clk 0:00:08]} 69. Bg5 {[%clk 0:00:21]}  Kf8 {[%clk 0:00:09]} 70. f5 {[%clk 0:00:22]}  Kg8 {[%clk 0:00:10]} 71. f6 {[%clk 0:00:22]}  Kh8 {[%clk 0:00:10]} 72. Bf4 {[%clk 0:00:23]}  Kg8 {[%clk 0:00:11]} 73. Be5 {[%clk 0:00:19]}  Kh8 {[%clk 0:00:12]} 74. f7# {[%clk 0:00:19]} 1-0


[Site "https://www.chess.com"]

[Event "Titled Tuesday Blitz April 4 Early 2023"]
[White "Iskusnyh, Sergei"]
[Black "Shubenkova, Veronika"]
[WhiteFideId "4120027"]
[BlackFideId "44124040"]
[WhiteElo "2492"]
[BlackElo "2027"]
[Result "0-1"]
[Round "05"]
[TimeControl "180+2"]
[Date "2023.04.04"]
[WhiteClock "0:00:07"]
[BlackClock "0:00:20"]

1. d4 {[%clk 0:03:00]}  d5 {[%clk 0:02:59]} 2. c4 {[%clk 0:03:00]}  e6 {[%clk 0:03:00]} 3. Nf3 {[%clk 0:03:00]}  Nf6 {[%clk 0:03:00]} 4. g3 {[%clk 0:03:00]}  Be7 {[%clk 0:03:00]} 5. Bg2 {[%clk 0:03:00]}  O-O {[%clk 0:03:01]} 6. Qc2 {[%clk 0:03:00]}  b6 {[%clk 0:03:01]} 7. O-O {[%clk 0:03:00]}  Bb7 {[%clk 0:03:02]} 8. cxd5 {[%clk 0:02:57]}  exd5 {[%clk 0:03:02]} 9. Nc3 {[%clk 0:02:57]}  c6 {[%clk 0:03:02]} 10. Bf4 {[%clk 0:02:52]}  Nbd7 {[%clk 0:03:02]} 11. Rad1 {[%clk 0:02:52]}  Rc8 {[%clk 0:03:01]} 12. Bh3 {[%clk 0:02:49]}  Ra8 {[%clk 0:02:58]} 13. Ne5 {[%clk 0:02:45]}  Nxe5 {[%clk 0:02:57]} 14. dxe5 {[%clk 0:02:44]}  Nh5 {[%clk 0:02:57]} 15. Bc1 {[%clk 0:02:43]}  Bc8 {[%clk 0:02:55]} 16. Bg2 {[%clk 0:02:40]}  Be6 {[%clk 0:02:52]} 17. e4 {[%clk 0:02:03]}  d4 {[%clk 0:02:51]} 18. f4 {[%clk 0:02:03]}  Bc4 {[%clk 0:02:45]} 19. Ne2 {[%clk 0:01:58]}  b5 {[%clk 0:02:22]} 20. Nxd4 {[%clk 0:01:42]}  Bxf1 {[%clk 0:02:19]} 21. Bxf1 {[%clk 0:01:41]}  Qb6 {[%clk 0:02:13]} 22. Kg2 {[%clk 0:01:35]}  g6 {[%clk 0:02:12]} 23. f5 {[%clk 0:01:22]}  Bc5 {[%clk 0:02:01]} 24. Nb3 {[%clk 0:01:05]}  Be3 {[%clk 0:01:58]} 25. f6 {[%clk 0:01:04]}  Rfd8 {[%clk 0:01:54]} 26. Re1 {[%clk 0:01:03]}  Bxc1 {[%clk 0:01:53]} 27. Qxc1 {[%clk 0:01:03]}  Re8 {[%clk 0:01:47]} 28. g4 {[%clk 0:01:03]}  Rxe5 {[%clk 0:01:39]} 29. gxh5 {[%clk 0:01:02]}  Rxh5 {[%clk 0:01:39]} 30. Be2 {[%clk 0:01:02]}  Rh4 {[%clk 0:01:21]} 31. Qg5 {[%clk 0:00:54]}  Rxh2+ {[%clk 0:01:20]} 32. Kxh2 {[%clk 0:00:49]}  Qf2+ {[%clk 0:01:20]} 33. Qg2 {[%clk 0:00:43]}  Qxe1 {[%clk 0:01:19]} 34. Bg4 {[%clk 0:00:31]}  Qh4+ {[%clk 0:01:17]} 35. Bh3 {[%clk 0:00:31]}  Qxf6 {[%clk 0:01:16]} 36. Qd2 {[%clk 0:00:28]}  Rd8 {[%clk 0:01:15]} 37. Qe3 {[%clk 0:00:25]}  Qe5+ {[%clk 0:01:13]} 38. Kg2 {[%clk 0:00:21]}  Qxb2+ {[%clk 0:01:12]} 39. Kg3 {[%clk 0:00:20]}  Qxa2 {[%clk 0:01:10]} 40. e5 {[%clk 0:00:18]}  Qc2 {[%clk 0:01:09]} 41. Nc5 {[%clk 0:00:17]}  Qd2 {[%clk 0:01:01]} 42. Qf3 {[%clk 0:00:15]}  Qe1+ {[%clk 0:00:59]} 43. Kf4 {[%clk 0:00:14]}  Qh4+ {[%clk 0:00:58]} 44. Ke3 {[%clk 0:00:14]}  Qg5+ {[%clk 0:00:57]} 45. Ke4 {[%clk 0:00:13]}  Rd5 {[%clk 0:00:50]} 46. Nd7 {[%clk 0:00:13]}  Qh4+ {[%clk 0:00:43]} 47. Bg4 {[%clk 0:00:13]}  Rxd7 {[%clk 0:00:43]} 48. e6 {[%clk 0:00:12]}  Qe1+ {[%clk 0:00:42]} 49. Kf4 {[%clk 0:00:12]}  fxe6 {[%clk 0:00:40]} 50. Kg5 {[%clk 0:00:11]}  Qe5+ {[%clk 0:00:39]} 51. Kh6 {[%clk 0:00:10]}  Rd5 {[%clk 0:00:29]} 52. Bxe6+ {[%clk 0:00:10]}  Qxe6 {[%clk 0:00:20]} 53. Qf7+ {[%clk 0:00:07]}  Kxf7 {[%clk 0:00:20]} 54. Kxh7 {[%clk 0:00:07]}  Rh5# {[%clk 0:00:20]} 0-1


[Site "https://www.chess.com"]

[Event "Titled Tuesday Blitz April 4 Early 2023"]
[White "Ronka, Erik"]
[Black "Vlassov, Nikolai"]
[WhiteFideId "505080"]
[BlackFideId "4103360"]
[WhiteElo "2264"]
[BlackElo "2324"]
[Result "0-1"]
[Round "05"]
[TimeControl "180+2"]
[Date "2023.04.04"]
[WhiteClock "0:02:08"]
[BlackClock "0:02:30"]

1. e4 {[%clk 0:03:00]}  Nc6 {[%clk 0:02:59]} 2. Nc3 {[%clk 0:02:58]}  Nf6 {[%clk 0:02:58]} 3. d4 {[%clk 0:02:53]}  d5 {[%clk 0:02:58]} 4. e5 {[%clk 0:02:53]}  Nd7 {[%clk 0:02:57]} 5. Nxd5 {[%clk 0:02:52]}  Ndb8 {[%clk 0:02:57]} 6. Ne3 {[%clk 0:02:49]}  Qxd4 {[%clk 0:02:56]} 7. Qxd4 {[%clk 0:02:50]}  Nxd4 {[%clk 0:02:56]} 8. c3 {[%clk 0:02:49]}  Nf5 {[%clk 0:02:56]} 9. Bd3 {[%clk 0:02:44]}  Nxe3 {[%clk 0:02:53]} 10. Bxe3 {[%clk 0:02:45]}  Nc6 {[%clk 0:02:51]} 11. f4 {[%clk 0:02:43]}  Be6 {[%clk 0:02:41]} 12. b3 {[%clk 0:02:33]}  O-O-O {[%clk 0:02:38]} 13. O-O-O {[%clk 0:02:33]}  Bd5 {[%clk 0:02:35]} 14. Bf1 {[%clk 0:02:08]}  e6 {[%clk 0:02:32]} 15. Kc2 {[%clk 0:02:08]}  Be4+ {[%clk 0:02:30]} 0-1


[Site "https://www.chess.com"]